fUST/lending_fUST_20250908
["ID","MTS","AMOUNT","RATE_DAILY","PERIOD"]
[384340370,1757345072340,-300.0,0.00013188,2]
[384340371,1757345072361,-90.97608962,0.00013188,2]
[384340372,1757345072373,-151.0,0.00013188,2]
[384340373,1757345072385,-58.02391038,0.00013188,2]
[384340374,1757345072394,-92.97608962,0.00013189,2]
[384340375,1757345072405,-151.0,0.00013189,2]
[384340376,1757345072420,-151.0,0.00013189,2]
[384340377,1757345072463,-105.02391038,0.00013189,2]
[384340378,1757345072495,-383.32012605,0.00013189,2]
[384340379,1757345072527,-1200.0,0.00013189,2]
[384340380,1757345072558,-1036.873,0.00013189,2]
[384340381,1757345072590,-172.431,0.00013189,2]
[384340382,1757345072609,-151.0,0.0001319,2]
[384340383,1757345072620,-151.0,0.0001319,2]
[384340384,1757345072633,-151.0,0.0001319,2]
[384340385,1757345072644,-151.0,0.0001319,2]
[384340386,1757345072657,-151.0,0.0001319,2]
[384340387,1757345072669,-151.0,0.0001319,2]
[384340388,1757345072682,-2030.296672,0.0001319,2]
[384340389,1757345072694,-151.0,0.0001319,2]
[384340390,1757345072705,-151.0,0.0001319,2]
[384340391,1757345072716,-151.0,0.0001319,2]
[384340392,1757345072734,-151.0,0.0001319,2]
[384340393,1757345072747,-151.0,0.0001319,2]
[384340394,1757345072759,-151.0,0.0001319,2]
[384340395,1757345072801,-151.0,0.0001319,2]
[384340396,1757345072820,-300.0,0.0001319,2]
[384340397,1757345072832,-23.46447676,0.0001319,2]
[384340398,1757345072844,-105.02391038,0.0001319,2]
[384340399,1757345072855,-383.32012605,0.0001319,2]
[384340400,1757345072866,-1200.0,0.0001319,2]
[384340401,1757345072881,-1036.873,0.0001319,2]
[384340402,1757345072895,-172.431,0.0001319,2]
[384340403,1757345072906,-4204.71392714,0.0001319,2]
[384340404,1757345072923,-10000.01,0.0001319,2]
[384340405,1757345073697,666.0,0.00012217,2]
[384340406,1757345081443,-10000.01,0.0001319,2]
[384340407,1757345081566,-10000.01,0.0001319,2]
[384340408,1757345081840,-10000.01,0.0001319,2]
[384340409,1757345082060,-10000.01,0.0001319,2]
[384340410,1757345082230,-10000.01,0.0001319,2]
[384340411,1757345082355,-10000.01,0.0001319,2]
[384340412,1757345082612,-10000.01,0.0001319,2]
[384340413,1757345082770,-1334.03286241,0.0001319,2]
[384340414,1757345082802,-2105.41764886,0.00013237,2]
[384340415,1757345082834,-1246.02186949,0.00013252,2]
[384340416,1757345082864,-252.47497743,0.00013273,2]
[384340417,1757345082877,-124.11528362,0.00013273,2]
[384340418,1757345082887,-1209.91757879,0.00013273,2]
[384340419,1757345082898,-294.93710437,0.00013273,2]
[384340420,1757345082908,-1810.48054449,0.00013292,2]
[384340421,1757345082920,-372.83755738,0.00013292,2]
[384340422,1757345082931,-173.19290809,0.00013296,2]
[384340423,1757345082941,-407.67006423,0.00013296,2]
[384340424,1757345082950,-292.32133979,0.00013297,2]
[384340425,1757345082961,-376.59026105,0.00013297,2]
[384340426,1757345082988,-10000.01,0.00013297,2]
[384340427,1757345083083,-10000.01,0.00013297,2]
[384340430,1757345101491,-500.0,0.00013189,2]
[384340431,1757345101531,-500.0,0.00013189,2]
[384340432,1757345101576,-500.0,0.00013189,2]
[384340433,1757345101619,-500.0,0.00013189,2]
[384340434,1757345101655,-500.0,0.00013189,2]
[384340435,1757345101697,-500.0,0.00013189,2]
[384340436,1757345101735,-500.0,0.00013189,2]
[384340437,1757345101770,-477.00008235,0.00013189,2]
[384340438,1757345101812,-500.0,0.00013189,2]
[384340439,1757345101847,-321.70803965,0.00013189,2]
[384340440,1757345101870,-500.0,0.00013189,2]
[384340441,1757345101924,-500.0,0.00013189,2]
[384340442,1757345101947,-500.0,0.00013189,2]
[384340443,1757345101961,-500.0,0.00013189,2]
[384340444,1757345102011,-500.0,0.00013189,2]
[384340445,1757345102048,-534.54015773,0.00013189,2]
[384340446,1757345102088,-300.0,0.00013189,2]
[384340447,1757345102127,-500.0,0.00013189,2]
[384340448,1757345102165,-500.0,0.00013189,2]
[384340449,1757345102203,-500.0,0.00013189,2]
[384340450,1757345102241,-500.0,0.00013189,2]
[384340451,1757345102279,-647.26544138,0.00013189,2]
[384340452,1757345102320,-500.0,0.00013189,2]
[384340453,1757345102358,-500.0,0.00013189,2]
[384340454,1757345102382,-200.0,0.00013189,2]
[384340455,1757345102393,-255.51652054,0.00013189,2]
[384340456,1757345102404,-44.48347946,0.00013297,2]
[384340457,1757345102423,-500.0,0.00013297,2]
[384340458,1757345102439,-500.0,0.00013297,2]
[384340459,1757345102460,-477.00008235,0.00013297,2]
[384340460,1757345102486,-500.0,0.00013297,2]
[384340461,1757345102519,-321.70803965,0.00013297,2]
[384340462,1757345102542,-402.593756,0.00013297,2]
[384340463,1757345102595,-500.0,0.00013297,2]
[384340464,1757345102609,-534.54015773,0.00013297,2]
[384340465,1757345102623,-300.0,0.00013297,2]
[384340466,1757345102645,-500.0,0.00013297,2]
[384340467,1757345102680,-500.0,0.00013297,2]
[384340468,1757345102703,-500.0,0.00013297,2]
[384340469,1757345102718,-500.0,0.00013297,2]
[384340470,1757345102740,-647.26544138,0.00013297,2]
[384340471,1757345102753,-500.0,0.00013297,2]
[384340472,1757345102771,-500.0,0.00013297,2]
[384340473,1757345102789,-36.39880178,0.00013297,2]
[384340474,1757345102800,-10000.01,0.00013297,2]
[384340475,1757345103090,-10000.01,0.00013297,2]
[384340476,1757345103103,-7223.61906201,0.00013297,2]
[384340477,1757345103114,-404.14478476,0.00013298,2]
[384340478,1757345103124,-2264.10087164,0.00013347,2]
[384340479,1757345103136,-108.14528159,0.00013368,2]
[384340482,1757345121471,-151.0,0.00013182,2]
[384340483,1757345121500,-151.0,0.00013182,2]
[384340484,1757345121529,-151.0,0.00013182,2]
[384340485,1757345121558,-2030.296672,0.00013182,2]
[384340486,1757345121588,-151.0,0.00013182,2]
[384340487,1757345121621,-151.0,0.00013182,2]
[384340488,1757345121651,-151.0,0.00013182,2]
[384340489,1757345121681,-151.0,0.00013182,2]
[384340490,1757345121713,-151.0,0.00013182,2]
[384340491,1757345121744,-151.0,0.00013182,2]
[384340492,1757345121777,-151.0,0.00013182,2]
[384340493,1757345121811,-151.0,0.00013182,2]
[384340494,1757345121843,-151.0,0.00013182,2]
[384340495,1757345121877,-151.0,0.00013182,2]
[384340496,1757345121911,-245.31765688,0.00013182,2]
[384340497,1757345122963,-7267.42946489,0.00013188,2]
[384340498,1757345125108,3936.61432888,0.0001305,2]
[384340500,1757345131534,-10000.01,0.00013188,2]
[384340501,1757345131672,-3052.57954799,0.00013188,2]
[384340502,1757345131710,-3894.85090402,0.00013188,2]
[384340503,1757345131822,-300.0,0.00013188,2]
[384340504,1757345131853,-300.0,0.00013188,2]
[384340505,1757345131887,-1200.0,0.00013188,2]
[384340506,1757345149746,6400.01,0.00013057,2]
[384340507,1757345149774,1753.37586667,0.00013057,2]
[384340508,1757345151584,-500.0,0.00013189,2]
[384340509,1757345151616,-500.0,0.00013189,2]
[384340510,1757345151651,-484.52195887,0.00013189,2]
[384340511,1757345151684,-500.0,0.00013189,2]
[384340512,1757345151715,-500.0,0.00013189,2]
[384340513,1757345151746,-178.29196034,0.00013189,2]
[384340514,1757345151778,-500.0,0.00013189,2]
[384340515,1757345151807,-500.0,0.00013189,2]
[384340516,1757345151837,-375.2473471,0.00013189,2]
[384340517,1757345151870,-500.0,0.00013189,2]
[384340518,1757345151901,-423.88746738,0.00013189,2]
[384340519,1757345152045,-76.11253262,0.00013189,2]
[384340520,1757345152078,-500.0,0.00013189,2]
[384340521,1757345152111,-640.68241804,0.00013189,2]
[384340522,1757345152142,-500.0,0.00013189,2]
[384340523,1757345152178,-500.0,0.00013189,2]
[384340524,1757345152212,-500.0,0.00013189,2]
[384340525,1757345152244,-500.0,0.00013189,2]
[384340526,1757345152278,-500.0,0.00013189,2]
[384340527,1757345152309,-500.0,0.00013189,2]
[384340528,1757345152517,-500.0,0.00013189,2]
[384340529,1757345152551,-66.42009868,0.00013189,2]
[384340530,1757345152688,-433.57990132,0.00013189,2]
[384340531,1757345152724,-500.0,0.00013189,2]
[384340532,1757345152760,-534.6932403,0.00013189,2]
[384340533,1757345152791,-500.0,0.00013189,2]
[384340534,1757345152826,-443.85087166,0.00013189,2]
[384340535,1757345152861,-500.0,0.00013189,2]
[384340536,1757345152895,-500.0,0.00013189,2]
[384340537,1757345152928,-500.0,0.00013189,2]
[384340538,1757345152961,-500.0,0.00013189,2]
[384340539,1757345152997,-500.0,0.00013189,2]
[384340540,1757345153132,-552.41353697,0.00013189,2]
[384340541,1757345153171,-500.0,0.00013189,2]
[384340542,1757345153206,-500.0,0.00013189,2]
[384340543,1757345153239,-500.0,0.00013189,2]
[384340544,1757345153270,-270.98801507,0.00013189,2]
[384340545,1757345153303,-405.20132059,0.00013189,2]
[384340546,1757345153334,-250.03053668,0.00013189,2]
[384340547,1757345153369,-500.0,0.00013189,2]
[384340548,1757345153401,-376.20561005,0.00013189,2]
[384340549,1757345153434,-500.0,0.00013189,2]
[384340550,1757345153467,-500.0,0.00013189,2]
[384340551,1757345153593,-500.0,0.00013189,2]
[384340552,1757345153627,-500.0,0.00013189,2]
[384340553,1757345153663,-500.0,0.00013189,2]
[384340554,1757345153696,-500.0,0.00013189,2]
[384340555,1757345153731,-484.6932403,0.00013189,2]
[384340556,1757345153765,-500.0,0.00013189,2]
[384340557,1757345153799,-500.0,0.00013189,2]
[384340558,1757345153833,-500.0,0.00013189,2]
[384340559,1757345153865,-500.0,0.00013189,2]
[384340560,1757345153900,-500.0,0.00013189,2]
[384340561,1757345154135,-500.0,0.00013189,2]
[384340562,1757345154169,-500.0,0.00013189,2]
[384340563,1757345154205,-500.0,0.00013189,2]
[384340564,1757345154238,-579.77625973,0.00013189,2]
[384340565,1757345154272,-500.0,0.00013189,2]
[384340566,1757345154306,-500.0,0.00013189,2]
[384340567,1757345154341,-500.0,0.00013189,2]
[384340568,1757345154372,-735.03983168,0.00013237,2]
[384340569,1757345161580,-1370.37781718,0.00013237,2]
[384340570,1757345161826,-1532.65620421,0.00013267,2]
[384340571,1757345161879,-10000.01,0.00013267,2]
[384340572,1757345161899,-10000.01,0.00013267,2]
[384340574,1757345183860,300.0,0.00013133,2]
[384340576,1757345192170,300.0,0.00013133,2]
[384340581,1757345209361,4725.49602596,0.00013068,2]
[384340582,1757345211678,-4674.51397404,0.000132,2]
[384340583,1757345211778,-10000.01,0.000132,2]
[384340584,1757345211947,-10000.01,0.000132,2]
[384340585,1757345212422,-10000.01,0.000132,2]
[384340586,1757345212567,-10000.01,0.000132,2]
[384340587,1757345212706,-10000.01,0.000132,2]
[384340588,1757345218596,3381.77715446,0.00013068,2]
[384340589,1757345221695,-3381.77715446,0.000132,2]
[384340590,1757345221738,-3236.45569108,0.00013267,2]
[384340592,1757345227552,300.0,0.00013133,2]
[384340594,1757345239934,510.48,0.00012329,2]
[384340595,1757345243921,1500.0,0.00013133,2]
[384340596,1757345252382,775.13947602,0.00013133,2]
[384340599,1757345269309,1500.0,0.00013133,2]
[384340600,1757345275540,-300.0,0.00013266,2]
[384340601,1757345275572,-1200.0,0.00013266,2]
[384340602,1757345275693,-2714.39052398,0.00013267,2]
[384340603,1757345292872,7765.29718173,0.00013134,2]
[384340604,1757345295037,418.04689529,0.00010618,2]
[384340605,1757345296959,1816.66592298,0.000125,2]
[384340606,1757345296986,9645.97996764,0.000125,2]
[384340609,1757345310458,284.68056279,0.0001,2]
[384340610,1757345316424,69.34946957,0.00013134,2]
[384340611,1757345316452,7695.94771216,0.00013134,2]
[384340613,1757345320349,1000.0,0.0001,2]
[384340619,1757345325821,1304.06228784,0.0001,2]
[384340620,1757345325848,10000.01,0.0001,2]
[384340621,1757345325875,6356.90234232,0.0001,2]
[384340622,1757345327169,3643.10765768,0.0001,2]
[384340623,1757345327194,10000.01,0.0001,2]
[384340624,1757345327218,10000.01,0.0001,2]
[384340625,1757345327241,10000.01,0.0001,2]
[384340626,1757345327265,6976.12695008,0.0001,2]
[384340627,1757345327651,1725.83272998,0.0001,2]
[384340628,1757345331529,1298.05031994,0.00012429,2]
[384340629,1757345331554,8701.94968006,0.00012429,2]
[384340630,1757345341947,1298.06031994,0.00013134,2]
[384340631,1757345341974,6467.23686179,0.00013134,2]
[384340632,1757345352784,204.03750631,0.00013082,2]
[384340637,1757345366621,3328.7356319,0.00013134,2]
[384340638,1757345366648,4638.63394221,0.00013134,2]
[384340639,1757345390618,5361.37605779,0.00013134,2]
[384340640,1757345390645,2605.99351632,0.00013134,2]
[384340653,1757345414805,1500.0,0.00013133,2]
[384340654,1757345428292,153.4542445,0.0001261,2]
[384340655,1757345430293,613.20316103,0.0001261,2]
[384340708,1757345432940,-300.0,0.00013266,2]
[384340710,1757345432952,-300.0,0.00013266,2]
[384340712,1757345432964,-300.0,0.00013266,2]
[384340714,1757345432975,-300.0,0.00013266,2]
[384340715,1757345432986,-300.0,0.00013266,2]
[384340717,1757345432996,-262.65222334,0.00013266,2]
[384340720,1757345433009,-425.768937,0.00013266,2]
[384340722,1757345433024,-511.57883966,0.00013266,2]
[384340724,1757345433034,-643.44383924,0.00013267,2]
[384340727,1757345433058,-7121.85334249,0.00013267,2]
[384340729,1757345433069,-202.07239238,0.00013267,2]
[384340731,1757345433080,-501.67970441,0.00013473,2]
[384340733,1757345433088,-500.0,0.00013473,2]
[384340735,1757345433099,-500.0,0.00013473,2]
[384340739,1757345433110,-500.9338512,0.00013473,2]
[384340743,1757345433121,-500.0,0.00013473,2]
[384340747,1757345433133,-500.0,0.00013473,2]
[384340750,1757345433144,-500.0,0.00013473,2]
[384340753,1757345433154,-500.0,0.00013473,2]
[384340756,1757345433165,-500.0,0.00013473,2]
[384340759,1757345433175,-504.62796832,0.00013473,2]
[384340761,1757345433184,-500.0,0.00013473,2]
[384340762,1757345433195,-500.00793289,0.00013473,2]
[384340764,1757345433206,-5022.82739034,0.00013497,2]
[384340766,1757345433220,-11109.93697624,0.00013498,2]
[384340845,1757345438826,-250.61294673,0.00013497,2]
[384340847,1757345438835,-485.50796249,0.00013497,2]
[384340849,1757345438847,-14.49203751,0.00013497,2]
[384340851,1757345438857,-343.44390965,0.00013497,2]
[384340853,1757345438870,-156.55609035,0.00013497,2]
[384340855,1757345438880,-238.58504904,0.00013497,2]
[384340857,1757345438891,-226.06001753,0.00013497,2]
[384340859,1757345438900,-162.45185052,0.00013497,2]
[384340870,1757345438997,-337.54814948,0.00013497,2]
[384340872,1757345439007,-175.02748301,0.00013497,2]
[384340874,1757345439017,-226.3261662,0.00013497,2]
[384340876,1757345439026,-500.0,0.00013497,2]
[384340878,1757345439036,-500.0,0.00013497,2]
[384340880,1757345439046,-534.91627403,0.00013497,2]
[384340882,1757345439056,-26423.77522317,0.00013498,2]
[384340884,1757345439066,-50000.0,0.00013498,2]
[384340886,1757345439075,-474.93002099,0.00013499,2]
[384340888,1757345439085,-230.95287693,0.00013499,2]
[384340890,1757345439095,-200.0,0.000135,2]
[384340892,1757345439105,-205161.06955102,0.000135,2]
[384340894,1757345439114,-5022.82739033,0.00013522,2]
[384340896,1757345439124,-5022.82739033,0.00013548,2]
[384340898,1757345439134,-5022.82739033,0.00013573,2]
[384340900,1757345439143,-497.44482921,0.0001359,2]
[384340903,1757345439154,-5022.82739033,0.00013598,2]
[384340905,1757345439164,-255.056543,0.00013598,2]
[384340907,1757345439173,-151.0,0.00013598,2]
[384340909,1757345439183,-255.056543,0.00013598,2]
[384340911,1757345439193,-255.056543,0.00013598,2]
[384340913,1757345439202,-151.0,0.00013598,2]
[384340915,1757345439212,-255.056543,0.00013598,2]
[384340916,1757345439222,-103456.72684628,0.00013598,2]
[384340919,1757345439232,-1000.0,0.00013598,2]
[384340921,1757345439242,-300.0,0.0001366,2]
[384340923,1757345439251,-300.0,0.0001366,2]
[384340925,1757345439261,-300.0,0.0001366,2]
[384340927,1757345439271,-300.0,0.0001366,2]
[384340929,1757345439280,-300.0,0.0001366,2]
[384340931,1757345439290,-300.0,0.0001366,2]
[384340933,1757345439300,-300.0,0.0001366,2]
[384340935,1757345439308,-300.0,0.0001366,2]
[384340937,1757345439318,-300.0,0.0001366,2]
[384340939,1757345439327,-300.0,0.0001366,2]
[384340941,1757345439336,-300.0,0.0001366,2]
[384340943,1757345439345,-300.0,0.0001366,2]
[384340945,1757345439355,-300.0,0.0001366,2]
[384340947,1757345439364,-300.0,0.0001366,2]
[384340949,1757345439374,-300.0,0.0001366,2]
[384340950,1757345439384,-600.0,0.0001366,2]
[384340953,1757345439393,-500.0,0.0001366,2]
[384340955,1757345439403,-500.96789446,0.00013673,2]
[384340957,1757345439413,-500.0,0.00013673,2]
[384340959,1757345439422,-500.0,0.00013673,2]
[384340961,1757345439432,-400.72478266,0.00013673,2]
[384340963,1757345439441,-500.0,0.00013673,2]
[384340965,1757345439451,-500.0,0.00013673,2]
[384340967,1757345439460,-158.02775411,0.00013673,2]
[384340969,1757345439469,-500.0,0.00013673,2]
[384340970,1757345439478,-500.0,0.00013673,2]
[384340973,1757345439488,-500.0,0.00013673,2]
[384340975,1757345439498,-500.0,0.00013673,2]
[384340976,1757345439507,-500.0,0.00013673,2]
[384340978,1757345439516,-500.0,0.00013673,2]
[384340980,1757345439525,-500.0,0.0001369,2]
[384340982,1757345439535,-500.0,0.0001369,2]
[384340984,1757345439544,-157.0,0.0001369,2]
[384340986,1757345439554,-157.0,0.0001369,2]
[384340988,1757345439563,-303.37487777,0.0001369,2]
[384340990,1757345439572,-157.0,0.0001369,2]
[384340992,1757345439582,-157.0,0.0001369,2]
[384340994,1757345439591,-157.0,0.0001369,2]
[384340996,1757345439600,-302.18639333,0.0001369,2]
[384340998,1757345439610,-500.0,0.0001369,2]
[384341000,1757345439619,-157.0,0.0001369,2]
[384341002,1757345439628,-241.59851013,0.0001369,2]
[384341004,1757345439637,-157.0,0.0001369,2]
[384341006,1757345439647,-432.0,0.0001369,2]
[384341008,1757345439656,-500.0,0.0001369,2]
[384341010,1757345439665,-263.69616883,0.0001369,2]
[384341012,1757345439676,-500.0,0.0001369,2]
[384341014,1757345439685,-157.0,0.0001369,2]
[384341016,1757345439695,-278.88981146,0.0001369,2]
[384341018,1757345439706,-500.0,0.0001369,2]
[384341020,1757345439718,-157.0,0.0001369,2]
[384341022,1757345439728,-157.0,0.0001369,2]
[384341024,1757345439737,-157.0,0.0001369,2]
[384341026,1757345439747,-157.0,0.0001369,2]
[384341028,1757345439757,-157.0,0.0001369,2]
[384341030,1757345439766,-157.0,0.0001369,2]
[384341032,1757345439775,-157.0,0.0001369,2]
[384341034,1757345439786,-157.0,0.0001369,2]
[384341036,1757345439795,-157.0,0.0001369,2]
[384341038,1757345439804,-500.0,0.0001369,2]
[384341040,1757345439813,-500.0,0.0001369,2]
[384341042,1757345439822,-157.0,0.0001369,2]
[384341044,1757345439832,-157.0,0.0001369,2]
[384341045,1757345439841,-500.0,0.0001369,2]
[384341047,1757345439851,-157.0,0.0001369,2]
[384341049,1757345439861,-46494.74061375,0.00013696,2]
[384341052,1757345439871,-480.0,0.00013698,2]
[384341054,1757345439880,-480.0,0.00013698,2]
[384341055,1757345439890,-480.0,0.00013698,2]
[384341057,1757345439899,-480.0,0.00013698,2]
[384341060,1757345439908,-242.98779928,0.00013698,2]
[384341061,1757345439918,-486.97312023,0.00013698,2]
[384341063,1757345439927,-480.0,0.00013698,2]
[384341065,1757345439936,-481.25946154,0.00013698,2]
[384341067,1757345439945,-480.0,0.00013698,2]
[384341069,1757345439955,-480.22091076,0.00013698,2]
[384341071,1757345439965,-480.0,0.00013698,2]
[384341073,1757345439974,-480.0,0.00013698,2]
[384341075,1757345439983,-480.0,0.00013698,2]
[384341077,1757345439992,-480.0,0.00013698,2]
[384341079,1757345440002,-480.0,0.00013698,2]
[384341081,1757345440012,-480.0,0.00013698,2]
[384341083,1757345440021,-480.0,0.00013698,2]
[384341085,1757345440030,-485.12721085,0.00013698,2]
[384341087,1757345440040,-480.0,0.00013698,2]
[384341089,1757345440050,-480.0,0.00013698,2]
[384341091,1757345440059,-480.0,0.00013698,2]
[384341093,1757345440069,-480.0,0.00013698,2]
[384341095,1757345440079,-480.0,0.00013698,2]
[384341097,1757345440088,-151.0,0.00013698,2]
[384341099,1757345440098,-151.0,0.00013698,2]
[384341100,1757345440107,-151.0,0.00013698,2]
[384341101,1757345440117,-151.0,0.00013698,2]
[384341102,1757345440127,-480.0,0.00013698,2]
[384341103,1757345440136,-151.0,0.00013698,2]
[384341104,1757345440147,-151.0,0.00013698,2]
[384341105,1757345440156,-151.0,0.00013698,2]
[384341106,1757345440166,-151.0,0.00013698,2]
[384341107,1757345440176,-480.0,0.00013698,2]
[384341108,1757345440185,-151.0,0.00013698,2]
[384341109,1757345440195,-151.0,0.00013698,2]
[384341110,1757345440204,-153.086832,0.00013698,2]
[384341111,1757345440214,-480.0,0.00013698,2]
[384341112,1757345440224,-480.0,0.00013698,2]
[384341113,1757345440234,-480.0,0.00013698,2]
[384341114,1757345440243,-480.0,0.00013698,2]
[384341115,1757345440253,-480.0,0.00013698,2]
[384341116,1757345440263,-480.0,0.00013698,2]
[384341117,1757345440273,-480.0,0.00013698,2]
[384341118,1757345440283,-480.0,0.00013698,2]
[384341119,1757345440292,-480.0,0.00013698,2]
[384341120,1757345440302,-480.0,0.00013698,2]
[384341121,1757345440312,-480.0,0.00013698,2]
[384341122,1757345440322,-481.50904131,0.00013698,2]
[384341123,1757345440332,-480.0,0.00013698,2]
[384341124,1757345440343,-480.0,0.00013698,2]
[384341125,1757345440352,-152.737725,0.00013698,2]
[384341126,1757345440362,-359.32162591,0.00013698,2]
[384341127,1757345440372,-151.0,0.00013698,2]
[384341128,1757345440382,-151.0,0.00013698,2]
[384341129,1757345440391,-480.0,0.00013698,2]
[384341130,1757345440400,-151.0,0.00013698,2]
[384341131,1757345440410,-480.0,0.00013698,2]
[384341132,1757345440420,-151.0,0.00013698,2]
[384341133,1757345440429,-151.0,0.00013698,2]
[384341134,1757345440439,-151.0,0.00013698,2]
[384341135,1757345440449,-151.0,0.00013698,2]
[384341137,1757345440459,-151.0,0.00013698,2]
[384341139,1757345440469,-480.0,0.00013698,2]
[384341140,1757345440478,-151.0,0.00013698,2]
[384341142,1757345440488,-151.0,0.00013698,2]
[384341143,1757345440497,-480.0,0.00013698,2]
[384341144,1757345440507,-151.0,0.00013698,2]
[384341146,1757345440517,-151.0,0.00013698,2]
[384341147,1757345440527,-151.0,0.00013698,2]
[384341148,1757345440536,-151.0,0.00013698,2]
[384341149,1757345440546,-151.0,0.00013698,2]
[384341150,1757345440555,-151.0,0.00013698,2]
[384341151,1757345440565,-480.0,0.00013698,2]
[384341152,1757345440576,-151.0,0.00013698,2]
[384341156,1757345440736,-151.0,0.00013698,2]
[384341158,1757345440746,-151.0,0.00013698,2]
[384341160,1757345440757,-151.0,0.00013698,2]
[384341162,1757345440767,-480.0,0.00013698,2]
[384341164,1757345440776,-151.0,0.00013698,2]
[384341166,1757345440787,-481.6815533,0.00013698,2]
[384341168,1757345440796,-480.0,0.00013698,2]
[384341170,1757345440807,-481.27704567,0.00013698,2]
[384341172,1757345440817,-480.0,0.00013698,2]
[384341174,1757345440827,-480.0,0.00013698,2]
[384341176,1757345440837,-480.0,0.00013698,2]
[384341178,1757345440847,-488.65118676,0.00013698,2]
[384341180,1757345440856,-480.0,0.00013698,2]
[384341182,1757345440866,-480.0,0.00013698,2]
[384341184,1757345440876,-480.0,0.00013698,2]
[384341186,1757345440885,-480.0,0.00013698,2]
[384341188,1757345440895,-480.0,0.00013698,2]
[384341190,1757345440904,-480.0,0.00013698,2]
[384341192,1757345440914,-480.0,0.00013698,2]
[384341194,1757345440923,-480.0,0.00013698,2]
[384341196,1757345440933,-480.0,0.00013698,2]
[384341198,1757345440943,-480.0,0.00013698,2]
[384341200,1757345440952,-480.0,0.00013698,2]
[384341202,1757345440962,-480.0,0.00013698,2]
[384341204,1757345440971,-480.0,0.00013698,2]
[384341206,1757345440982,-480.0,0.00013698,2]
[384341208,1757345440992,-480.0,0.00013698,2]
[384341210,1757345441001,-480.0,0.00013698,2]
[384341212,1757345441011,-480.0,0.00013698,2]
[384341214,1757345441020,-480.70773505,0.00013698,2]
[384341216,1757345441030,-480.0,0.00013698,2]
[384341218,1757345441039,-480.0,0.00013698,2]
[384341220,1757345441049,-480.0,0.00013698,2]
[384341222,1757345441059,-480.0,0.00013698,2]
[384341224,1757345441068,-480.0,0.00013698,2]
[384341226,1757345441078,-480.0,0.00013698,2]
[384341228,1757345441087,-490.44406265,0.00013698,2]
[384341230,1757345441097,-480.0,0.00013698,2]
[384341232,1757345441107,-481.81971484,0.00013698,2]
[384341234,1757345441116,-480.0,0.00013698,2]
[384341236,1757345441126,-280.36022268,0.00013698,2]
[384341238,1757345441135,-480.0,0.00013698,2]
[384341240,1757345441145,-480.0,0.00013698,2]
[384341242,1757345441154,-480.0,0.00013698,2]
[384341244,1757345441164,-480.0,0.00013698,2]
[384341246,1757345441174,-480.64569854,0.00013698,2]
[384341248,1757345441183,-151.0,0.00013698,2]
[384341250,1757345441193,-151.0,0.00013698,2]
[384341252,1757345441202,-480.0,0.00013698,2]
[384341254,1757345441212,-151.0,0.00013698,2]
[384341255,1757345441223,-151.0,0.00013698,2]
[384341256,1757345441232,-151.0,0.00013698,2]
[384341257,1757345441241,-151.0,0.00013698,2]
[384341258,1757345441250,-151.0,0.00013698,2]
[384341259,1757345441259,-151.0,0.00013698,2]